[Event "Early-Titled-Tuesday-Blitz-January-30-2024"]
[Site "Chess.com"]
[Date "2024.01.30"]
[Round "2"]
[White "leotobares"]
[Black "Witik"]
[Result "0-1"]
[WhiteElo "2352"]
[BlackElo "2677"]
[TimeControl "180+1"]
[EndTime "8:20:06 PST"]
[Termination "Witik won by resignation"]

1. e4 {[%clk 0:03:00.9]} 1... c6 {[%clk 0:02:59.4]} 2. d4 {[%clk 0:03:00.1]}
2... d5 {[%clk 0:02:59.8]} 3. exd5 {[%clk 0:03:00.5]} 3... cxd5 {[%clk 0:03:00]}
4. Bd3 {[%clk 0:03:00.9]} 4... Nf6 {[%clk 0:02:59.8]} 5. c3 {[%clk 0:03:01]}
5... Bg4 {[%clk 0:02:59.2]} 6. Qb3 {[%clk 0:02:59.8]} 6... Qc7 {[%clk
0:02:58.6]} 7. Nd2 {[%clk 0:02:56.2]} 7... Nc6 {[%clk 0:02:57]} 8. Ngf3 {[%clk
0:02:55.8]} 8... e6 {[%clk 0:02:57.1]} 9. O-O {[%clk 0:02:55.3]} 9... Bd6 {[%clk
0:02:57.3]} 10. Re1 {[%clk 0:02:54.7]} 10... O-O {[%clk 0:02:57]} 11. h3 {[%clk
0:02:54.9]} 11... Bh5 {[%clk 0:02:57.2]} 12. Be2 {[%clk 0:02:50.8]} 12... Rab8
{[%clk 0:02:55.3]} 13. Qd1 {[%clk 0:02:50.2]} 13... Rfc8 {[%clk 0:02:46.3]} 14.
Ne5 {[%clk 0:02:49.1]} 14... Bxe5 {[%clk 0:02:19.8]} 15. dxe5 {[%clk 0:02:45.7]}
15... Qxe5 {[%clk 0:02:16.5]} 16. Nf3 {[%clk 0:02:38.2]} 16... Qc7 {[%clk
0:02:08]} 17. Bg5 {[%clk 0:02:36.2]} 17... Ne4 {[%clk 0:02:06.2]} 18. Bh4 {[%clk
0:02:34.9]} 18... Qf4 {[%clk 0:01:53.2]} 19. g3 {[%clk 0:02:26.4]} 19... Qc7
{[%clk 0:01:34.3]} 20. g4 {[%clk 0:02:26.3]} 20... Bg6 {[%clk 0:01:33.2]} 21.
Nd2 {[%clk 0:02:24.4]} 21... Qb6 {[%clk 0:01:24]} 22. Bf3 {[%clk 0:02:16.5]}
22... Qxb2 {[%clk 0:01:16]} 23. Nxe4 {[%clk 0:02:14.5]} 23... dxe4 {[%clk
0:01:16.6]} 24. Bxe4 {[%clk 0:02:14.7]} 24... Bxe4 {[%clk 0:01:05.8]} 25. Rxe4
{[%clk 0:02:13.6]} 25... Qxc3 {[%clk 0:01:06]} 26. Bg3 {[%clk 0:02:11]} 26...
Rd8 {[%clk 0:00:50.4]} 27. Qb1 {[%clk 0:02:02]} 27... Rbc8 {[%clk 0:00:46.9]}
28. Re3 {[%clk 0:02:00.9]} 28... Qf6 {[%clk 0:00:39.8]} 29. Qf1 {[%clk 0:01:49]}
29... Rd5 {[%clk 0:00:29.4]} 30. Rb1 {[%clk 0:01:47.9]} 30... Qe7 {[%clk
0:00:22.6]} 31. Reb3 {[%clk 0:01:45.4]} 31... Na5 {[%clk 0:00:19]} 32. Rb5
{[%clk 0:01:41.1]} 32... Rxb5 {[%clk 0:00:19.1]} 33. Qxb5 {[%clk 0:01:39.3]}
33... b6 {[%clk 0:00:19.6]} 34. Rd1 {[%clk 0:01:37.3]} 34... h6 {[%clk 0:00:18]}
35. Rd7 {[%clk 0:01:34.8]} 35... Qe8 {[%clk 0:00:18.3]} 36. Qd3 {[%clk
0:01:31.3]} 36... Nc6 {[%clk 0:00:15.1]} 37. Bc7 {[%clk 0:01:21.4]} 37... a6
{[%clk 0:00:10.8]} 38. Qd6 {[%clk 0:01:20.6]} 38... Ne5 {[%clk 0:00:10.1]} 39.
Re7 {[%clk 0:01:17.6]} 39... Nf3+ {[%clk 0:00:05.6]} 40. Kg2 {[%clk 0:01:16.1]}
40... Ne1+ {[%clk 0:00:04.7]} 41. Kf1 {[%clk 0:01:14.4]} 41... Qa4 {[%clk
0:00:03.5]} 42. Kxe1 {[%clk 0:01:11.9]} 42... Qxa2 {[%clk 0:00:03.9]} 43. Rd7
{[%clk 0:01:06]} 43... Qb1+ {[%clk 0:00:03.2]} 44. Ke2 {[%clk 0:01:05.5]} 44...
Qe4+ {[%clk 0:00:03.6]} 45. Kf1 {[%clk 0:01:04.3]} 45... Qh1+ {[%clk 0:00:03.6]}
46. Ke2 {[%clk 0:01:04]} 46... Qxh3 {[%clk 0:00:04.3]} 47. Rd8+ {[%clk
0:01:02.5]} 47... Rxd8 {[%clk 0:00:04.4]} 48. Qxd8+ {[%clk 0:01:01.7]} 48... Kh7
{[%clk 0:00:05]} 49. Qd3+ {[%clk 0:01:00.6]} 49... Qxd3+ {[%clk 0:00:05.3]} 50.
Kxd3 {[%clk 0:01:00.5]} 50... b5 {[%clk 0:00:05.8]} 51. f3 {[%clk 0:00:54.4]}
51... g5 {[%clk 0:00:05.5]} 52. Kc3 {[%clk 0:00:52.4]} 52... Kg6 {[%clk
0:00:05.4]} 53. Kb4 {[%clk 0:00:51.9]} 53... h5 {[%clk 0:00:03.9]} 54. gxh5+
{[%clk 0:00:49.8]} 54... Kxh5 {[%clk 0:00:04.3]} 55. Kc3 {[%clk 0:00:46.3]}
55... g4 {[%clk 0:00:04.1]} 56. fxg4+ {[%clk 0:00:45.6]} 56... Kxg4 {[%clk
0:00:04.5]} 57. Kd4 {[%clk 0:00:45.2]} 57... f6 {[%clk 0:00:03.9]} 58. Ba5
{[%clk 0:00:43.8]} 58... Kf5 {[%clk 0:00:04.1]} 59. Ke3 {[%clk 0:00:43.4]} 59...
e5 {[%clk 0:00:04.4]} 60. Bb4 {[%clk 0:00:41.7]} 60... Ke6 {[%clk 0:00:05]} 61.
Ba5 {[%clk 0:00:41.2]} 61... Kd5 {[%clk 0:00:05.4]} 62. Be1 {[%clk 0:00:39.5]}
62... f5 {[%clk 0:00:05.9]} 63. Ba5 {[%clk 0:00:38.7]} 63... Kc4 {[%clk
0:00:06.4]} 64. Bc7 {[%clk 0:00:37.7]} 64... e4 {[%clk 0:00:07]} 65. Kf4 {[%clk
0:00:37.7]} 65... b4 {[%clk 0:00:07.5]} 66. Kxf5 {[%clk 0:00:34.3]} 66... Kd3
{[%clk 0:00:07.6]} 67. Ba5 {[%clk 0:00:28.4]} 67... b3 {[%clk 0:00:07.6]} 68.
Bd8 {[%clk 0:00:25.7]} 68... b2 {[%clk 0:00:07.5]} 0-1

[Event "Early-Titled-Tuesday-Blitz-January-30-2024"]
[Site "Chess.com"]
[Date "2024.01.30"]
[Round "2"]
[White "Chessdreamer2020"]
[Black "TreinadorBR"]
[Result "1-0"]
[WhiteElo "2547"]
[BlackElo "2321"]
[TimeControl "180+1"]
[EndTime "8:20:08 PST"]
[Termination "Chessdreamer2020 won by resignation"]

1. e4 {[%clk 0:03:00.7]} 1... c5 {[%clk 0:02:20.5]} 2. Nf3 {[%clk 0:03:00.5]}
2... d6 {[%clk 0:02:20.3]} 3. d4 {[%clk 0:03:00.4]} 3... cxd4 {[%clk 0:02:21.2]}
4. Qxd4 {[%clk 0:03:01.3]} 4... Nc6 {[%clk 0:02:20.1]} 5. Qe3 {[%clk 0:03:01.4]}
5... a6 {[%clk 0:02:18.2]} 6. h3 {[%clk 0:03:01.6]} 6... Nf6 {[%clk 0:02:17.8]}
7. Be2 {[%clk 0:03:01.8]} 7... e6 {[%clk 0:02:16.2]} 8. O-O {[%clk 0:03:01.7]}
8... Be7 {[%clk 0:02:16.2]} 9. Rd1 {[%clk 0:03:02.2]} 9... Qc7 {[%clk
0:02:16.5]} 10. c4 {[%clk 0:03:02.6]} 10... O-O {[%clk 0:02:16.2]} 11. Nc3
{[%clk 0:03:03]} 11... Ne5 {[%clk 0:02:14.6]} 12. b3 {[%clk 0:03:00.6]} 12... b5
{[%clk 0:02:09.8]} 13. Bb2 {[%clk 0:02:49.1]} 13... bxc4 {[%clk 0:02:08.3]} 14.
Nxe5 {[%clk 0:02:48.9]} 14... dxe5 {[%clk 0:02:07.1]} 15. Bxc4 {[%clk
0:02:49.3]} 15... Bb7 {[%clk 0:02:04.4]} 16. Rac1 {[%clk 0:02:48.9]} 16... Qa5
{[%clk 0:01:57.7]} 17. Kh2 {[%clk 0:01:58.6]} 17... Rfd8 {[%clk 0:01:41.3]} 18.
f3 {[%clk 0:01:43.5]} 18... Nh5 {[%clk 0:01:38.9]} 19. Na4 {[%clk 0:01:41.2]}
19... h6 {[%clk 0:01:15.2]} 20. Bc3 {[%clk 0:01:39.8]} 20... Bb4 {[%clk
0:01:12.9]} 21. Bxb4 {[%clk 0:01:02.3]} 21... Qxb4 {[%clk 0:01:13.8]} 22. Nb6
{[%clk 0:01:03]} 22... Rab8 {[%clk 0:01:09.8]} 23. Nd7 {[%clk 0:01:02.6]} 23...
Rbc8 {[%clk 0:01:04.5]} 24. Nxe5 {[%clk 0:01:01.4]} 24... Qe7 {[%clk 0:00:53]}
25. g4 {[%clk 0:00:28.4]} 25... Qc7 {[%clk 0:00:47.7]} 26. f4 {[%clk 0:00:14.2]}
26... Rxd1 {[%clk 0:00:38.8]} 27. Rxd1 {[%clk 0:00:11.4]} 27... Nf6 {[%clk
0:00:38.9]} 28. Rd4 {[%clk 0:00:10.4]} 28... g5 {[%clk 0:00:35.9]} 29. Nd3
{[%clk 0:00:08.2]} 29... h5 {[%clk 0:00:17.2]} 30. e5 {[%clk 0:00:07.5]} 30...
Nd5 {[%clk 0:00:10.4]} 31. Qg3 {[%clk 0:00:05.7]} 31... h4 {[%clk 0:00:08.4]}
32. Qg1 {[%clk 0:00:04]} 32... Nxf4 {[%clk 0:00:07.2]} 33. Nxf4 {[%clk
0:00:04.3]} 33... Qxe5 {[%clk 0:00:07.1]} 34. Qf2 {[%clk 0:00:04.9]} 34... gxf4
{[%clk 0:00:06.9]} 35. Rxf4 {[%clk 0:00:04.7]} 35... Rc7 {[%clk 0:00:07.3]} 36.
Qd4 {[%clk 0:00:02.9]} 36... Qxd4 {[%clk 0:00:06.6]} 37. Rxd4 {[%clk 0:00:03.8]}
37... Kg7 {[%clk 0:00:06.9]} 38. Rd6 {[%clk 0:00:03.6]} 38... a5 {[%clk
0:00:04.3]} 39. Kg1 {[%clk 0:00:02.7]} 39... a4 {[%clk 0:00:03.8]} 40. Kf2
{[%clk 0:00:03.6]} 40... axb3 {[%clk 0:00:04.3]} 41. axb3 {[%clk 0:00:04.5]}
41... Kf6 {[%clk 0:00:04.2]} 42. Ke3 {[%clk 0:00:04.9]} 42... Ke5 {[%clk
0:00:04.6]} 43. Rb6 {[%clk 0:00:05.8]} 43... f5 {[%clk 0:00:04.3]} 44. Rb5+
{[%clk 0:00:06.3]} 44... Kf6 {[%clk 0:00:04.2]} 45. gxf5 {[%clk 0:00:07.2]}
45... exf5 {[%clk 0:00:05.1]} 46. Rb6+ {[%clk 0:00:07.7]} 46... Ke5 {[%clk
0:00:05.5]} 47. Rb5+ {[%clk 0:00:07.7]} 47... Kf6 {[%clk 0:00:05.8]} 48. Kf4
{[%clk 0:00:08.3]} 48... Bc8 {[%clk 0:00:04.8]} 49. Rb6+ {[%clk 0:00:08.6]}
49... Ke7 {[%clk 0:00:03.8]} 50. Rh6 {[%clk 0:00:08.9]} 50... Bd7 {[%clk
0:00:02.9]} 51. Rxh4 {[%clk 0:00:09.1]} 51... Ra7 {[%clk 0:00:01.2]} 52. Rh7+
{[%clk 0:00:09.6]} 52... Kd6 {[%clk 0:00:02.1]} 53. Bb5 {[%clk 0:00:08.6]} 53...
Ra1 {[%clk 0:00:03]} 54. Rxd7+ {[%clk 0:00:08.8]} 54... Kc5 {[%clk 0:00:03.9]}
55. Bc4 {[%clk 0:00:09.1]} 55... Rd1 {[%clk 0:00:04.2]} 56. Rxd1 {[%clk
0:00:08.8]} 56... Kb4 {[%clk 0:00:04.7]} 57. h4 {[%clk 0:00:09.7]} 57... Kc3
{[%clk 0:00:05.6]} 58. h5 {[%clk 0:00:10.5]} 58... Kc2 {[%clk 0:00:06.2]} 59.
Rg1 {[%clk 0:00:11.4]} 59... Kd2 {[%clk 0:00:06.5]} 60. h6 {[%clk 0:00:12.3]}
1-0

[Event "Early-Titled-Tuesday-Blitz-January-30-2024"]
[Site "Chess.com"]
[Date "2024.01.30"]
[Round "2"]
[White "LimeInTheCoconut"]
[Black "FLYD"]
[Result "1-0"]
[WhiteElo "2460"]
[BlackElo "2036"]
[TimeControl "180+1"]
[EndTime "8:20:16 PST"]
[Termination "LimeInTheCoconut won by checkmate"]

1. e4 {[%clk 0:03:00.9]} 1... e5 {[%clk 0:03:00.2]} 2. Nf3 {[%clk 0:02:54.4]}
2... Nf6 {[%clk 0:03:00.3]} 3. Nc3 {[%clk 0:02:52]} 3... Nc6 {[%clk 0:03:00.5]}
4. d4 {[%clk 0:02:49.6]} 4... exd4 {[%clk 0:02:53.6]} 5. Nxd4 {[%clk 0:02:50.5]}
5... Bc5 {[%clk 0:02:52.7]} 6. Be3 {[%clk 0:02:47.1]} 6... Nxd4 {[%clk
0:02:44.8]} 7. Bxd4 {[%clk 0:02:46.7]} 7... Bxd4 {[%clk 0:02:45.3]} 8. Qxd4
{[%clk 0:02:47.5]} 8... d6 {[%clk 0:02:44.3]} 9. O-O-O {[%clk 0:02:45]} 9... Qe7
{[%clk 0:02:35.3]} 10. Bb5+ {[%clk 0:02:18.8]} 10... Bd7 {[%clk 0:02:35]} 11.
Bxd7+ {[%clk 0:02:18.9]} 11... Qxd7 {[%clk 0:02:33.3]} 12. e5 {[%clk 0:02:13.4]}
12... dxe5 {[%clk 0:02:27.1]} 13. Qxe5+ {[%clk 0:02:14.3]} 13... Qe7 {[%clk
0:02:27.5]} 14. Qxe7+ {[%clk 0:01:34.4]} 14... Kxe7 {[%clk 0:02:28.4]} 15. Rhe1+
{[%clk 0:01:34.6]} 15... Kf8 {[%clk 0:02:28.9]} 16. Nb5 {[%clk 0:01:32.2]} 16...
c6 {[%clk 0:02:14.3]} 17. Nd6 {[%clk 0:01:31.1]} 17... g6 {[%clk 0:02:04.3]} 18.
Nxb7 {[%clk 0:01:28.9]} 18... Kg7 {[%clk 0:02:04.7]} 19. Na5 {[%clk 0:01:23]}
19... c5 {[%clk 0:01:54.8]} 20. f3 {[%clk 0:01:17.4]} 20... Rab8 {[%clk
0:01:52.1]} 21. b3 {[%clk 0:01:14.5]} 21... Rb5 {[%clk 0:01:50.5]} 22. Nc4
{[%clk 0:01:13.6]} 22... h5 {[%clk 0:01:41.9]} 23. h4 {[%clk 0:01:10.6]} 23...
Rhb8 {[%clk 0:01:35.6]} 24. Re7 {[%clk 0:01:07.6]} 24... R5b7 {[%clk 0:01:31.1]}
25. Rxb7 {[%clk 0:01:02.6]} 25... Rxb7 {[%clk 0:01:32]} 26. Rd8 {[%clk
0:01:02.8]} 26... Re7 {[%clk 0:00:59.7]} 27. Kd2 {[%clk 0:01:01.8]} 27... Nd7
{[%clk 0:00:51.2]} 28. a4 {[%clk 0:00:53.6]} 28... Nf8 {[%clk 0:00:49.6]} 29.
Rd5 {[%clk 0:00:19.4]} 29... Ne6 {[%clk 0:00:49.3]} 30. g3 {[%clk 0:00:18.6]}
30... Nd4 {[%clk 0:00:36.2]} 31. Rxc5 {[%clk 0:00:17.6]} 31... Nxf3+ {[%clk
0:00:36.5]} 32. Kc3 {[%clk 0:00:17.4]} 32... Ne1 {[%clk 0:00:29.6]} 33. Ra5
{[%clk 0:00:10.7]} 33... Re2 {[%clk 0:00:23.1]} 34. Rxa7 {[%clk 0:00:10.4]}
34... Rxc2+ {[%clk 0:00:23.6]} 35. Kb4 {[%clk 0:00:08.8]} 35... Nd3+ {[%clk
0:00:22.6]} 36. Kb5 {[%clk 0:00:09]} 36... Rc3 {[%clk 0:00:19]} 37. Na5 {[%clk
0:00:07.8]} 37... Rc5+ {[%clk 0:00:17.4]} 38. Kb6 {[%clk 0:00:07.1]} 38... Re5
{[%clk 0:00:16.4]} 39. Rd7 {[%clk 0:00:05.7]} 39... Nb4 {[%clk 0:00:14.6]} 40.
Nc4 {[%clk 0:00:06]} 40... Rf5 {[%clk 0:00:13.6]} 41. a5 {[%clk 0:00:05.3]}
41... g5 {[%clk 0:00:11.8]} 42. hxg5 {[%clk 0:00:04.8]} 42... Rxg5 {[%clk
0:00:12.7]} 43. a6 {[%clk 0:00:05.3]} 43... Rg6+ {[%clk 0:00:12.3]} 44. Rd6
{[%clk 0:00:03.6]} 44... Nxa6 {[%clk 0:00:11.2]} 45. Rxg6+ {[%clk 0:00:03]}
45... Kxg6 {[%clk 0:00:12.1]} 46. Kxa6 {[%clk 0:00:03.9]} 46... Kg5 {[%clk
0:00:12.1]} 47. Ne3 {[%clk 0:00:04.3]} 47... f5 {[%clk 0:00:11.9]} 48. b4 {[%clk
0:00:04.5]} 48... f4 {[%clk 0:00:12.8]} 49. gxf4+ {[%clk 0:00:04.9]} 49... Kxf4
{[%clk 0:00:13.7]} 50. Ng2+ {[%clk 0:00:05.2]} 50... Kg3 {[%clk 0:00:14.1]} 51.
Ne3 {[%clk 0:00:05.3]} 51... Kf3 {[%clk 0:00:14.7]} 52. Nf5 {[%clk 0:00:05.5]}
52... Kg4 {[%clk 0:00:13.6]} 53. b5 {[%clk 0:00:04.4]} 53... Kxf5 {[%clk
0:00:13.8]} 54. b6 {[%clk 0:00:04.9]} 54... h4 {[%clk 0:00:14.7]} 55. b7 {[%clk
0:00:05.8]} 55... Kg4 {[%clk 0:00:14.4]} 56. b8=Q {[%clk 0:00:06.7]} 56... Kh3
{[%clk 0:00:14.1]} 57. Qb3+ {[%clk 0:00:06.1]} 57... Kg2 {[%clk 0:00:14.1]} 58.
Qc2+ {[%clk 0:00:06.5]} 58... Kg3 {[%clk 0:00:11.8]} 59. Qd3+ {[%clk 0:00:06.5]}
59... Kg2 {[%clk 0:00:11.7]} 60. Qe2+ {[%clk 0:00:06.8]} 60... Kg3 {[%clk
0:00:12.3]} 61. Qe1+ {[%clk 0:00:06.4]} 61... Kg4 {[%clk 0:00:10.4]} 62. Qh1
{[%clk 0:00:06]} 62... Kg3 {[%clk 0:00:10.6]} 63. Kb5 {[%clk 0:00:06.9]} 63...
h3 {[%clk 0:00:11.2]} 64. Kc4 {[%clk 0:00:07.4]} 64... h2 {[%clk 0:00:12.1]} 65.
Kd3 {[%clk 0:00:07.6]} 65... Kf2 {[%clk 0:00:12.4]} 66. Qxh2+ {[%clk 0:00:06.9]}
66... Kf1 {[%clk 0:00:13.3]} 67. Ke3 {[%clk 0:00:06]} 67... Ke1 {[%clk
0:00:13.6]} 68. Qe2# {[%clk 0:00:06.9]} 1-0

[Event "Early-Titled-Tuesday-Blitz-January-30-2024"]
[Site "Chess.com"]
[Date "2024.01.30"]
[Round "2"]
[White "elgrona"]
[Black "GaiozNigalidze"]
[Result "0-1"]
[WhiteElo "2283"]
[BlackElo "2704"]
[TimeControl "180+1"]
[EndTime "8:20:17 PST"]
[Termination "GaiozNigalidze won on time"]

1. Nf3 {[%clk 0:03:00.9]} 1... Nf6 {[%clk 0:02:59.2]} 2. b3 {[%clk 0:03:01.1]}
2... g6 {[%clk 0:02:56.1]} 3. Bb2 {[%clk 0:03:01.5]} 3... Bg7 {[%clk 0:02:56.3]}
4. g3 {[%clk 0:03:01.1]} 4... O-O {[%clk 0:02:56.4]} 5. Bg2 {[%clk 0:03:01.5]}
5... b5 {[%clk 0:02:56.6]} 6. O-O {[%clk 0:03:00.5]} 6... Bb7 {[%clk 0:02:56.9]}
7. d3 {[%clk 0:02:55.1]} 7... c5 {[%clk 0:02:55.3]} 8. a4 {[%clk 0:02:51.6]}
8... b4 {[%clk 0:02:47.7]} 9. e4 {[%clk 0:02:45]} 9... d6 {[%clk 0:02:44.8]} 10.
Nbd2 {[%clk 0:02:40.1]} 10... Nc6 {[%clk 0:02:33.6]} 11. Nc4 {[%clk 0:02:24.4]}
11... Qc7 {[%clk 0:02:24.7]} 12. Re1 {[%clk 0:02:23.3]} 12... e5 {[%clk
0:01:57.6]} 13. Nfd2 {[%clk 0:02:03.9]} 13... Nd4 {[%clk 0:01:50.3]} 14. Nf1
{[%clk 0:01:56.1]} 14... Nd7 {[%clk 0:01:12.6]} 15. Nfe3 {[%clk 0:01:39.6]}
15... a5 {[%clk 0:01:11.8]} 16. c3 {[%clk 0:01:23.4]} 16... bxc3 {[%clk
0:01:09.2]} 17. Bxc3 {[%clk 0:01:23.8]} 17... Bc6 {[%clk 0:01:04.8]} 18. Rb1
{[%clk 0:01:17.8]} 18... Rfb8 {[%clk 0:01:02.9]} 19. Bh3 {[%clk 0:00:56.2]}
19... Ra6 {[%clk 0:00:51]} 20. Bxd7 {[%clk 0:00:48.1]} 20... Bxd7 {[%clk
0:00:49]} 21. Nd5 {[%clk 0:00:45.3]} 21... Qd8 {[%clk 0:00:49.1]} 22. Bxd4
{[%clk 0:00:35.4]} 22... exd4 {[%clk 0:00:43.7]} 23. Qd2 {[%clk 0:00:28.2]}
23... h6 {[%clk 0:00:33.2]} 24. Qf4 {[%clk 0:00:18.7]} 24... Be6 {[%clk
0:00:28.7]} 25. Kg2 {[%clk 0:00:15.6]} 25... g5 {[%clk 0:00:27]} 26. Qd2 {[%clk
0:00:15.1]} 26... Rba8 {[%clk 0:00:20.2]} 27. f4 {[%clk 0:00:14.8]} 27... gxf4
{[%clk 0:00:17.7]} 28. Qxf4 {[%clk 0:00:11.6]} 28... Qg5 {[%clk 0:00:14.1]} 29.
Rf1 {[%clk 0:00:09.4]} 29... Rb8 {[%clk 0:00:11.9]} 30. Nf6+ {[%clk 0:00:06.9]}
30... Kh8 {[%clk 0:00:11.1]} 31. Nd5 {[%clk 0:00:04.9]} 31... Bxd5 {[%clk
0:00:09.4]} 32. Qxg5 {[%clk 0:00:05]} 32... Bxe4+ {[%clk 0:00:08.7]} 33. dxe4
{[%clk 0:00:05.2]} 33... hxg5 {[%clk 0:00:07.8]} 34. Rxf7 {[%clk 0:00:06.1]}
34... d3 {[%clk 0:00:05.3]} 35. Rd7 {[%clk 0:00:05.4]} 35... Bd4 {[%clk
0:00:04.3]} 36. Nxd6 {[%clk 0:00:04.6]} 36... Rf8 {[%clk 0:00:03.7]} 37. Nf7+
{[%clk 0:00:04.1]} 37... Kg7 {[%clk 0:00:04.2]} 38. Nxg5+ {[%clk 0:00:04.2]}
38... Kg6 {[%clk 0:00:04.6]} 39. Nf3 {[%clk 0:00:04.2]} 39... Rf7 {[%clk
0:00:03.8]} 40. Rxf7 {[%clk 0:00:03.1]} 40... Kxf7 {[%clk 0:00:04.7]} 41. Nxd4
{[%clk 0:00:02.8]} 41... cxd4 {[%clk 0:00:05.1]} 42. Rd1 {[%clk 0:00:03.4]}
42... Rb6 {[%clk 0:00:05.6]} 43. Rxd3 {[%clk 0:00:03.5]} 43... Rb4 {[%clk
0:00:06.3]} 44. Kf3 {[%clk 0:00:03.8]} 44... Ke6 {[%clk 0:00:06.9]} 45. h4
{[%clk 0:00:04.3]} 45... Ke5 {[%clk 0:00:07.4]} 46. g4 {[%clk 0:00:04.9]} 46...
Rb7 {[%clk 0:00:07.7]} 47. g5 {[%clk 0:00:05.2]} 47... Rf7+ {[%clk 0:00:08.3]}
48. Kg3 {[%clk 0:00:05.6]} 48... Kxe4 {[%clk 0:00:09.2]} 49. Rd1 {[%clk
0:00:04.8]} 49... d3 {[%clk 0:00:09.3]} 50. g6 {[%clk 0:00:05.1]} 50... Rf6
{[%clk 0:00:08.7]} 51. h5 {[%clk 0:00:05.3]} 51... Ke3 {[%clk 0:00:09.3]} 52. g7
{[%clk 0:00:05.4]} 52... Rf3+ {[%clk 0:00:08.9]} 53. Kg4 {[%clk 0:00:05.2]}
53... Rf2 {[%clk 0:00:09.2]} 54. h6 {[%clk 0:00:05.4]} 54... Ke2 {[%clk
0:00:08.5]} 55. Rxd3 {[%clk 0:00:04.2]} 55... Kxd3 {[%clk 0:00:08.3]} 56. h7
{[%clk 0:00:04]} 56... Rg2+ {[%clk 0:00:08.7]} 57. Kf4 {[%clk 0:00:04.5]} 57...
Rxg7 {[%clk 0:00:08.7]} 58. h8=Q {[%clk 0:00:05.4]} 58... Rf7+ {[%clk
0:00:09.2]} 59. Ke5 {[%clk 0:00:04.9]} 59... Re7+ {[%clk 0:00:07.9]} 60. Kd5
{[%clk 0:00:05.1]} 60... Rb7 {[%clk 0:00:07.7]} 61. Qh3+ {[%clk 0:00:03.8]}
61... Kc2 {[%clk 0:00:07.3]} 62. Kc4 {[%clk 0:00:03.8]} 62... Rb4+ {[%clk
0:00:06.8]} 63. Kc5 {[%clk 0:00:03.8]} 63... Rxb3 {[%clk 0:00:07.3]} 64. Qg3
{[%clk 0:00:04.5]} 64... Rxg3 {[%clk 0:00:06.7]} 0-1

[Event "Early-Titled-Tuesday-Blitz-January-30-2024"]
[Site "Chess.com"]
[Date "2024.01.30"]
[Round "2"]
[White "Ural_bogatyr"]
[Black "Andreikka"]
[Result "0-1"]
[WhiteElo "2541"]
[BlackElo "2985"]
[TimeControl "180+1"]
[EndTime "8:20:17 PST"]
[Termination "Andreikka won by resignation"]

1. d4 {[%clk 0:03:00.9]} 1... Nf6 {[%clk 0:02:56.9]} 2. Nc3 {[%clk 0:03:00.9]}
2... d5 {[%clk 0:02:56.1]} 3. Bf4 {[%clk 0:03:01.4]} 3... c5 {[%clk 0:02:51.1]}
4. e4 {[%clk 0:03:01.2]} 4... cxd4 {[%clk 0:02:48.2]} 5. Qxd4 {[%clk 0:02:59.9]}
5... Nc6 {[%clk 0:02:48.5]} 6. Bb5 {[%clk 0:03:00.6]} 6... Bd7 {[%clk
0:02:48.8]} 7. Bxc6 {[%clk 0:03:01]} 7... Bxc6 {[%clk 0:02:49.4]} 8. e5 {[%clk
0:03:01.3]} 8... Nd7 {[%clk 0:02:50.1]} 9. e6 {[%clk 0:03:01.4]} 9... fxe6
{[%clk 0:02:50.8]} 10. Nf3 {[%clk 0:03:02.1]} 10... Qb6 {[%clk 0:02:51.4]} 11.
Qxb6 {[%clk 0:03:01.4]} 11... axb6 {[%clk 0:02:49.6]} 12. O-O-O {[%clk
0:03:01.9]} 12... d4 {[%clk 0:02:42.2]} 13. Nxd4 {[%clk 0:02:56.2]} 13... Bxg2
{[%clk 0:02:37.8]} 14. Rhg1 {[%clk 0:02:54.8]} 14... Bc6 {[%clk 0:02:26.6]} 15.
Nxe6 {[%clk 0:02:52.3]} 15... Kf7 {[%clk 0:02:25.7]} 16. Nd4 {[%clk 0:02:37.3]}
16... Nf6 {[%clk 0:02:20.8]} 17. Bc7 {[%clk 0:02:20.8]} 17... Ra6 {[%clk
0:01:34.3]} 18. a3 {[%clk 0:01:54.2]} 18... g6 {[%clk 0:01:33.7]} 19. Rge1
{[%clk 0:01:29.1]} 19... Bg7 {[%clk 0:01:30.7]} 20. Kb1 {[%clk 0:01:19.7]} 20...
Rc8 {[%clk 0:01:27.1]} 21. Be5 {[%clk 0:01:18.4]} 21... Bd7 {[%clk 0:01:14]} 22.
Ne4 {[%clk 0:01:12.9]} 22... h6 {[%clk 0:01:06.7]} 23. Rd2 {[%clk 0:00:37.5]}
23... Nxe4 {[%clk 0:00:49.1]} 24. Rxe4 {[%clk 0:00:36]} 24... Bxe5 {[%clk
0:00:44.8]} 25. Rxe5 {[%clk 0:00:36.9]} 25... Rc5 {[%clk 0:00:37.3]} 26. Re3
{[%clk 0:00:26.6]} 26... Ra8 {[%clk 0:00:26.9]} 27. Rde2 {[%clk 0:00:25.3]}
27... Re8 {[%clk 0:00:26.4]} 28. Nf3 {[%clk 0:00:12.8]} 28... Kf6 {[%clk
0:00:26.1]} 29. Ne5 {[%clk 0:00:12.1]} 29... Bf5 {[%clk 0:00:26.6]} 30. Kc1
{[%clk 0:00:10.7]} 30... Rec8 {[%clk 0:00:23.3]} 31. c3 {[%clk 0:00:10.5]} 31...
Rd8 {[%clk 0:00:18.6]} 32. h3 {[%clk 0:00:10.2]} 32... Rcd5 {[%clk 0:00:17.2]}
33. Ng4+ {[%clk 0:00:10.2]} 33... Kg5 {[%clk 0:00:16.2]} 34. Re1 {[%clk
0:00:10.1]} 34... e6 {[%clk 0:00:16.7]} 35. Ne5 {[%clk 0:00:09.4]} 35... Kf4
{[%clk 0:00:15.7]} 36. Rf3+ {[%clk 0:00:08.7]} 36... Kg5 {[%clk 0:00:16.1]} 37.
Nf7+ {[%clk 0:00:08.5]} 37... Kf6 {[%clk 0:00:16.7]} 38. Nxd8 {[%clk 0:00:08.8]}
38... Rxd8 {[%clk 0:00:17.6]} 39. Rfe3 {[%clk 0:00:07.5]} 39... g5 {[%clk
0:00:17.7]} 40. a4 {[%clk 0:00:06.3]} 40... h5 {[%clk 0:00:17.6]} 41. b3 {[%clk
0:00:06.4]} 41... h4 {[%clk 0:00:17.6]} 42. c4 {[%clk 0:00:04]} 42... Rd4 {[%clk
0:00:16.9]} 43. Kb2 {[%clk 0:00:03.5]} 43... Rf4 {[%clk 0:00:17.2]} 44. R1e2
{[%clk 0:00:03.4]} 44... g4 {[%clk 0:00:17.6]} 45. hxg4 {[%clk 0:00:03.3]} 45...
Bxg4 {[%clk 0:00:18.3]} 46. Re1 {[%clk 0:00:02.4]} 46... Rxf2+ {[%clk
0:00:17.2]} 47. Kc3 {[%clk 0:00:02.9]} 47... h3 {[%clk 0:00:17.7]} 48. Rg3
{[%clk 0:00:02.7]} 48... Bf5 {[%clk 0:00:18]} 49. Rh1 {[%clk 0:00:01.9]} 49...
e5 {[%clk 0:00:13.9]} 50. Kb4 {[%clk 0:00:02.4]} 50... e4 {[%clk 0:00:13.8]} 51.
a5 {[%clk 0:00:03]} 51... bxa5+ {[%clk 0:00:13]} 52. Kxa5 {[%clk 0:00:03.9]}
52... Ke5 {[%clk 0:00:12]} 53. Kb6 {[%clk 0:00:03.6]} 53... Kf4 {[%clk
0:00:11.7]} 54. Rgxh3 {[%clk 0:00:03.6]} 54... Bxh3 {[%clk 0:00:12.3]} 55. Rxh3
{[%clk 0:00:04.5]} 55... Rb2 {[%clk 0:00:12.2]} 56. Kxb7 {[%clk 0:00:03.3]}
56... e3 {[%clk 0:00:12.9]} 57. c5 {[%clk 0:00:03.2]} 57... Rxb3+ {[%clk
0:00:11.1]} 58. Kc7 {[%clk 0:00:03.3]} 58... e2 {[%clk 0:00:11.5]} 59. Rxb3
{[%clk 0:00:03.5]} 59... e1=Q {[%clk 0:00:11.5]} 60. Rb6 {[%clk 0:00:03.6]}
60... Qe7+ {[%clk 0:00:10.6]} 61. Kc6 {[%clk 0:00:03.7]} 61... Ke5 {[%clk
0:00:11.2]} 62. Rb3 {[%clk 0:00:02.4]} 62... Qe6+ {[%clk 0:00:10.9]} 63. Kc7
{[%clk 0:00:02.9]} 63... Qxb3 {[%clk 0:00:11.8]} 64. c6 {[%clk 0:00:03.8]} 64...
Ke6 {[%clk 0:00:11.3]} 0-1